[Event "Titled Tuesday Blitz August 1 Early 2023"]
[White "Martin, Lewis"]
[Black "Grossboss19"]
[WhiteFideId "410551"]
[WhiteElo "2266"]
[BlackElo "2483"]
[Result "1-0"]
[Round "5"]
[TimeControl "180+1"]
[Date "2023.08.01"]
[WhiteClock "0:00:21"]
[BlackClock "0:00:15"]
[Board "196"]

1. e4 {[%clk 0:03:00]}  e6 {[%clk 0:02:56]} 2. d4 {[%clk 0:02:59]}  d5 {[%clk 0:02:57]} 3. Nd2 {[%clk 0:02:59]}  c5 {[%clk 0:02:52]} 4. exd5 {[%clk 0:02:58]}  Qxd5 {[%clk 0:02:52]} 5. dxc5 {[%clk 0:02:58]}  Bxc5 {[%clk 0:02:51]} 6. Ngf3 {[%clk 0:02:59]}  Nc6 {[%clk 0:02:48]} 7. Bc4 {[%clk 0:02:55]}  Qd8 {[%clk 0:02:47]} 8. O-O {[%clk 0:02:56]}  Nf6 {[%clk 0:02:46]} 9. Nb3 {[%clk 0:02:53]}  Qxd1 {[%clk 0:02:40]} 10. Rxd1 {[%clk 0:02:54]}  Bb6 {[%clk 0:02:41]} 11. Be3 {[%clk 0:02:16]}  Bxe3 {[%clk 0:02:37]} 12. fxe3 {[%clk 0:02:16]}  O-O {[%clk 0:02:27]} 13. Kf1 {[%clk 0:02:03]}  b6 {[%clk 0:02:21]} 14. Ke2 {[%clk 0:02:02]}  Bb7 {[%clk 0:02:19]} 15. c3 {[%clk 0:01:55]}  Rac8 {[%clk 0:02:10]} 16. Bd3 {[%clk 0:01:53]}  e5 {[%clk 0:02:05]} 17. Bf5 {[%clk 0:01:50]}  Rc7 {[%clk 0:02:05]} 18. h3 {[%clk 0:01:45]}  g6 {[%clk 0:02:04]} 19. Bc2 {[%clk 0:01:43]}  Ne8 {[%clk 0:01:34]} 20. a4 {[%clk 0:01:33]}  a5 {[%clk 0:01:28]} 21. Rd2 {[%clk 0:01:27]}  f5 {[%clk 0:01:21]} 22. Ng5 {[%clk 0:01:25]}  Ng7 {[%clk 0:01:08]} 23. Rad1 {[%clk 0:01:25]}  h6 {[%clk 0:01:05]} 24. Nf3 {[%clk 0:01:24]}  Ba6+ {[%clk 0:01:00]} 25. Kf2 {[%clk 0:01:23]}  Rf6 {[%clk 0:00:45]} 26. Rd6 {[%clk 0:01:19]}  Ne8 {[%clk 0:00:39]} 27. Rxf6 {[%clk 0:01:09]}  Nxf6 {[%clk 0:00:38]} 28. Rd6 {[%clk 0:01:10]}  Kf7 {[%clk 0:00:35]} 29. Rxc6 {[%clk 0:01:07]}  Rxc6 {[%clk 0:00:30]} 30. Nxe5+ {[%clk 0:01:07]}  Ke6 {[%clk 0:00:31]} 31. Nxc6 {[%clk 0:01:08]}  Kd5 {[%clk 0:00:31]} 32. Ne7+ {[%clk 0:01:04]}  Kc4 {[%clk 0:00:30]} 33. Nxg6 {[%clk 0:00:59]}  Ne4+ {[%clk 0:00:30]} 34. Bxe4 {[%clk 0:00:57]}  fxe4 {[%clk 0:00:28]} 35. Nc1 {[%clk 0:00:54]}  Bb7 {[%clk 0:00:24]} 36. Kg3 {[%clk 0:00:50]}  Bc6 {[%clk 0:00:24]} 37. Kf4 {[%clk 0:00:48]}  Bxa4 {[%clk 0:00:24]} 38. Ne5+ {[%clk 0:00:46]}  Kd5 {[%clk 0:00:23]} 39. c4+ {[%clk 0:00:42]}  Kc5 {[%clk 0:00:23]} 40. b3 {[%clk 0:00:40]}  Be8 {[%clk 0:00:21]} 41. Kxe4 {[%clk 0:00:40]}  Kb4 {[%clk 0:00:22]} 42. Kd4 {[%clk 0:00:37]}  Ka3 {[%clk 0:00:21]} 43. Kc3 {[%clk 0:00:37]}  h5 {[%clk 0:00:20]} 44. Nf3 {[%clk 0:00:33]}  Bc6 {[%clk 0:00:19]} 45. Nd4 {[%clk 0:00:33]}  Be4 {[%clk 0:00:18]} 46. g4 {[%clk 0:00:32]}  h4 {[%clk 0:00:18]} 47. g5 {[%clk 0:00:30]}  a4 {[%clk 0:00:18]} 48. b4 {[%clk 0:00:28]}  b5 {[%clk 0:00:17]} 49. c5 {[%clk 0:00:27]}  Bc6 {[%clk 0:00:15]} 50. g6 {[%clk 0:00:21]}  Be4 {[%clk 0:00:15]} 51. Nxb5# {[%clk 0:00:21]} 1-0


[Site "https://www.chess.com"]

[Event "Titled Tuesday Blitz August 1 Early 2023"]
[White "Joshi, Pankaj"]
[Black "Devaev, Alexander"]
[WhiteFideId "5006210"]
[BlackFideId "4169395"]
[WhiteElo "2261"]
[BlackElo "2444"]
[Result "1-0"]
[Round "5"]
[TimeControl "180+1"]
[Date "2023.08.01"]
[WhiteClock "0:00:05"]
[BlackClock "0:00:00"]
[Board "197"]

1. e4 {[%clk 0:03:00]}  c6 {[%clk 0:02:38]} 2. d4 {[%clk 0:02:59]}  d5 {[%clk 0:02:38]} 3. exd5 {[%clk 0:03:00]}  cxd5 {[%clk 0:02:37]} 4. Bd3 {[%clk 0:03:00]}  Nc6 {[%clk 0:02:36]} 5. c3 {[%clk 0:03:00]}  g6 {[%clk 0:02:36]} 6. Bf4 {[%clk 0:03:00]}  Bf5 {[%clk 0:02:36]} 7. Be2 {[%clk 0:03:00]}  Nf6 {[%clk 0:02:34]} 8. Nf3 {[%clk 0:03:00]}  e6 {[%clk 0:02:33]} 9. O-O {[%clk 0:02:58]}  Bd6 {[%clk 0:02:32]} 10. Ne5 {[%clk 0:02:55]}  Qc7 {[%clk 0:02:30]} 11. Bg5 {[%clk 0:02:46]}  Ne4 {[%clk 0:02:19]} 12. Nxc6 {[%clk 0:01:37]}  Nxg5 {[%clk 0:02:01]} 13. Ne5 {[%clk 0:01:37]}  Bxe5 {[%clk 0:01:56]} 14. dxe5 {[%clk 0:01:37]}  Bxb1 {[%clk 0:01:50]} 15. Rxb1 {[%clk 0:01:32]}  Qxe5 {[%clk 0:01:50]} 16. Bb5+ {[%clk 0:01:32]}  Kf8 {[%clk 0:01:50]} 17. f4 {[%clk 0:01:30]}  Qe3+ {[%clk 0:01:50]} 18. Kh1 {[%clk 0:01:30]}  Ne4 {[%clk 0:01:50]} 19. Qc2 {[%clk 0:01:18]}  Nd6 {[%clk 0:01:32]} 20. Rbe1 {[%clk 0:01:15]}  Qc5 {[%clk 0:01:29]} 21. Bd3 {[%clk 0:01:13]}  h5 {[%clk 0:01:27]} 22. Bxg6 {[%clk 0:00:58]}  h4 {[%clk 0:01:24]} 23. f5 {[%clk 0:00:51]}  e5 {[%clk 0:01:02]} 24. Rxe5 {[%clk 0:00:44]}  Nc4 {[%clk 0:01:02]} 25. Ree1 {[%clk 0:00:32]}  h3 {[%clk 0:00:56]} 26. g3 {[%clk 0:00:32]}  Rd8 {[%clk 0:00:49]} 27. Qe2 {[%clk 0:00:25]}  d4 {[%clk 0:00:36]} 28. Bxf7 {[%clk 0:00:17]}  d3 {[%clk 0:00:25]} 29. Qe6 {[%clk 0:00:13]}  d2 {[%clk 0:00:16]} 30. Bg6 {[%clk 0:00:12]}  Qc6+ {[%clk 0:00:14]} 31. Qxc6 {[%clk 0:00:12]}  bxc6 {[%clk 0:00:14]} 32. Rd1 {[%clk 0:00:13]}  Ne3 {[%clk 0:00:13]} 33. Kg1 {[%clk 0:00:12]}  Nxf1 {[%clk 0:00:09]} 34. Kxf1 {[%clk 0:00:12]}  Ke7 {[%clk 0:00:05]} 35. Ke2 {[%clk 0:00:11]}  Kf6 {[%clk 0:00:05]} 36. Rxd2 {[%clk 0:00:12]}  Rxd2+ {[%clk 0:00:06]} 37. Kxd2 {[%clk 0:00:13]}  Rd8+ {[%clk 0:00:06]} 38. Ke2 {[%clk 0:00:13]}  c5 {[%clk 0:00:06]} 39. c4 {[%clk 0:00:13]}  Rd4 {[%clk 0:00:06]} 40. b3 {[%clk 0:00:13]}  a5 {[%clk 0:00:06]} 41. Ke3 {[%clk 0:00:12]}  a4 {[%clk 0:00:06]} 42. g4 {[%clk 0:00:09]}  a3 {[%clk 0:00:06]} 43. Bh5 {[%clk 0:00:08]}  Rd1 {[%clk 0:00:06]} 44. g5+ {[%clk 0:00:07]}  Kxg5 {[%clk 0:00:06]} 45. Bxd1 {[%clk 0:00:08]}  Kxf5 {[%clk 0:00:05]} 46. Bc2+ {[%clk 0:00:07]}  Ke5 {[%clk 0:00:00]} 47. Be4 {[%clk 0:00:05]} 1-0


[Site "https://www.chess.com"]

[Event "Titled Tuesday Blitz August 1 Early 2023"]
[White "Daniel_Salinas"]
[Black "KorolDimitriy75"]
[WhiteElo "2245"]
[BlackElo "2413"]
[Result "1-0"]
[Round "5"]
[TimeControl "180+1"]
[Date "2023.08.01"]
[WhiteClock "0:00:15"]
[BlackClock "0:00:05"]
[Board "202"]

1. d4 {[%clk 0:02:54]}  Nf6 {[%clk 0:02:59]} 2. c4 {[%clk 0:02:53]}  c5 {[%clk 0:02:59]} 3. d5 {[%clk 0:02:52]}  b5 {[%clk 0:02:59]} 4. cxb5 {[%clk 0:02:53]}  a6 {[%clk 0:03:00]} 5. e3 {[%clk 0:02:53]}  axb5 {[%clk 0:02:59]} 6. Bxb5 {[%clk 0:02:54]}  Qa5+ {[%clk 0:02:59]} 7. Nc3 {[%clk 0:02:55]}  Bb7 {[%clk 0:03:00]} 8. Bd2 {[%clk 0:02:33]}  Qb6 {[%clk 0:02:59]} 9. a4 {[%clk 0:02:07]}  Nxd5 {[%clk 0:02:58]} 10. Nxd5 {[%clk 0:02:08]}  Bxd5 {[%clk 0:02:58]} 11. Nf3 {[%clk 0:02:09]}  e6 {[%clk 0:02:50]} 12. O-O {[%clk 0:02:07]}  Be7 {[%clk 0:02:49]} 13. Qe2 {[%clk 0:02:00]}  O-O {[%clk 0:02:48]} 14. a5 {[%clk 0:01:57]}  Qa7 {[%clk 0:02:28]} 15. Bc3 {[%clk 0:01:41]}  Bc6 {[%clk 0:02:15]} 16. Bd3 {[%clk 0:01:36]}  d5 {[%clk 0:02:07]} 17. Ne5 {[%clk 0:01:34]}  Be8 {[%clk 0:01:57]} 18. Qh5 {[%clk 0:01:18]}  f5 {[%clk 0:01:44]} 19. Qf3 {[%clk 0:01:11]}  Nc6 {[%clk 0:01:36]} 20. Nxc6 {[%clk 0:01:01]}  Bxc6 {[%clk 0:01:37]} 21. Qg3 {[%clk 0:01:01]}  Bf6 {[%clk 0:01:33]} 22. Qd6 {[%clk 0:00:53]}  Bd7 {[%clk 0:01:12]} 23. Bxf6 {[%clk 0:00:43]}  Rxf6 {[%clk 0:01:13]} 24. b4 {[%clk 0:00:35]}  c4 {[%clk 0:00:55]} 25. Bc2 {[%clk 0:00:35]}  Rb8 {[%clk 0:00:38]} 26. Rfb1 {[%clk 0:00:23]}  Bb5 {[%clk 0:00:33]} 27. Ba4 {[%clk 0:00:22]}  Qb7 {[%clk 0:00:11]} 28. Bxb5 {[%clk 0:00:21]}  Qxb5 {[%clk 0:00:11]} 29. a6 {[%clk 0:00:22]}  e5 {[%clk 0:00:11]} 30. Qxe5 {[%clk 0:00:13]}  Re8 {[%clk 0:00:10]} 31. Qd4 {[%clk 0:00:11]}  Rxa6 {[%clk 0:00:10]} 32. Rxa6 {[%clk 0:00:11]}  Qxa6 {[%clk 0:00:10]} 33. Qxd5+ {[%clk 0:00:12]}  Kh8 {[%clk 0:00:10]} 34. h4 {[%clk 0:00:12]}  h6 {[%clk 0:00:10]} 35. b5 {[%clk 0:00:12]}  Qa2 {[%clk 0:00:10]} 36. Rc1 {[%clk 0:00:13]}  Rb8 {[%clk 0:00:08]} 37. Rxc4 {[%clk 0:00:12]}  Qb1+ {[%clk 0:00:07]} 38. Kh2 {[%clk 0:00:11]}  Qxb5 {[%clk 0:00:07]} 39. Rc8+ {[%clk 0:00:11]}  Kh7 {[%clk 0:00:06]} 40. Qg8+ {[%clk 0:00:11]}  Kg6 {[%clk 0:00:06]} 41. Rxb8 {[%clk 0:00:12]}  Qe5+ {[%clk 0:00:05]} 42. g3 {[%clk 0:00:12]}  Qe4 {[%clk 0:00:05]} 43. Rb6+ {[%clk 0:00:11]}  Kh5 {[%clk 0:00:04]} 44. Qf7+ {[%clk 0:00:11]}  Kg4 {[%clk 0:00:03]} 45. Qg6+ {[%clk 0:00:12]}  Kf3 {[%clk 0:00:03]} 46. Qc6 {[%clk 0:00:12]}  Kxf2 {[%clk 0:00:03]} 47. Qxe4 {[%clk 0:00:12]}  fxe4 {[%clk 0:00:04]} 48. Rg6 {[%clk 0:00:11]}  Kxe3 {[%clk 0:00:04]} 49. Rxg7 {[%clk 0:00:12]}  Kf2 {[%clk 0:00:03]} 50. Rg6 {[%clk 0:00:11]}  e3 {[%clk 0:00:03]} 51. Rxh6 {[%clk 0:00:12]}  e2 {[%clk 0:00:04]} 52. Re6 {[%clk 0:00:13]}  e1=Q {[%clk 0:00:05]} 53. Rxe1 {[%clk 0:00:13]}  Kxe1 {[%clk 0:00:06]} 54. h5 {[%clk 0:00:14]}  Kf2 {[%clk 0:00:05]} 55. h6 {[%clk 0:00:15]} 1-0


[Site "https://www.chess.com"]

[Event "Titled Tuesday Blitz August 1 Early 2023"]
[White "Liu, Leonardo"]
[Black "Federzoni, Enzo"]
[WhiteFideId "30965780"]
[BlackFideId "2173301"]
[WhiteElo "2224"]
[BlackElo "2407"]
[Result "0-1"]
[Round "5"]
[TimeControl "180+1"]
[Date "2023.08.01"]
[WhiteClock "0:00:09"]
[BlackClock "0:00:16"]
[Board "205"]

1. e4 {[%clk 0:02:53]}  e5 {[%clk 0:02:59]} 2. Nf3 {[%clk 0:02:53]}  Nc6 {[%clk 0:03:00]} 3. Bc4 {[%clk 0:02:51]}  Nf6 {[%clk 0:02:59]} 4. d3 {[%clk 0:02:50]}  Be7 {[%clk 0:03:00]} 5. Nbd2 {[%clk 0:02:46]}  O-O {[%clk 0:03:00]} 6. Nf1 {[%clk 0:02:46]}  d6 {[%clk 0:02:54]} 7. Ng3 {[%clk 0:02:46]}  Na5 {[%clk 0:02:55]} 8. Bb3 {[%clk 0:02:33]}  Nxb3 {[%clk 0:02:44]} 9. axb3 {[%clk 0:02:33]}  Re8 {[%clk 0:02:41]} 10. O-O {[%clk 0:02:33]}  Bf8 {[%clk 0:02:40]} 11. h3 {[%clk 0:02:19]}  d5 {[%clk 0:02:38]} 12. Qe2 {[%clk 0:02:18]}  d4 {[%clk 0:02:30]} 13. Re1 {[%clk 0:02:17]}  g6 {[%clk 0:02:18]} 14. c3 {[%clk 0:02:13]}  dxc3 {[%clk 0:02:16]} 15. bxc3 {[%clk 0:02:14]}  Be6 {[%clk 0:02:14]} 16. b4 {[%clk 0:02:08]}  Bd7 {[%clk 0:02:07]} 17. d4 {[%clk 0:02:06]}  exd4 {[%clk 0:02:04]} 18. Nxd4 {[%clk 0:02:06]}  c5 {[%clk 0:01:58]} 19. bxc5 {[%clk 0:02:00]}  Bxc5 {[%clk 0:01:57]} 20. e5 {[%clk 0:01:53]}  Nd5 {[%clk 0:01:55]} 21. Qc4 {[%clk 0:01:53]}  Bxd4 {[%clk 0:01:50]} 22. cxd4 {[%clk 0:01:51]}  Bc6 {[%clk 0:01:46]} 23. Ne4 {[%clk 0:01:48]}  Rc8 {[%clk 0:01:36]} 24. Bg5 {[%clk 0:01:46]}  Qd7 {[%clk 0:01:25]} 25. Rxa7 {[%clk 0:01:35]}  Qf5 {[%clk 0:01:25]} 26. Qc1 {[%clk 0:01:19]}  Bb5 {[%clk 0:01:06]} 27. Qd2 {[%clk 0:01:15]}  Ra8 {[%clk 0:00:31]} 28. Rxb7 {[%clk 0:01:05]}  Bc6 {[%clk 0:00:31]} 29. Nd6 {[%clk 0:00:46]}  Qe6 {[%clk 0:00:23]} 30. Rxf7 {[%clk 0:00:44]}  Rf8 {[%clk 0:00:20]} 31. Rxf8+ {[%clk 0:00:31]}  Rxf8 {[%clk 0:00:21]} 32. Bh6 {[%clk 0:00:31]}  Rd8 {[%clk 0:00:20]} 33. Qg5 {[%clk 0:00:31]}  Rxd6 {[%clk 0:00:20]} 34. exd6 {[%clk 0:00:29]}  Qxe1+ {[%clk 0:00:20]} 35. Kh2 {[%clk 0:00:30]}  Qe6 {[%clk 0:00:19]} 36. Qd8+ {[%clk 0:00:29]}  Be8 {[%clk 0:00:20]} 37. Bg5 {[%clk 0:00:27]}  Kf7 {[%clk 0:00:19]} 38. h4 {[%clk 0:00:21]}  Nf6 {[%clk 0:00:19]} 39. Qc7+ {[%clk 0:00:20]}  Nd7 {[%clk 0:00:18]} 40. Bf4 {[%clk 0:00:15]}  Qf5 {[%clk 0:00:18]} 41. Bg3 {[%clk 0:00:15]}  Qf6 {[%clk 0:00:18]} 42. Qc4+ {[%clk 0:00:14]}  Qe6 {[%clk 0:00:18]} 43. d5 {[%clk 0:00:14]}  Qf6 {[%clk 0:00:18]} 44. Qe4 {[%clk 0:00:15]}  Kf8 {[%clk 0:00:17]} 45. Qc4 {[%clk 0:00:14]}  Bf7 {[%clk 0:00:17]} 46. Qc8+ {[%clk 0:00:14]}  Be8 {[%clk 0:00:18]} 47. Qc4 {[%clk 0:00:14]}  Qf5 {[%clk 0:00:18]} 48. Qc8 {[%clk 0:00:14]}  Nf6 {[%clk 0:00:17]} 49. Qc5 {[%clk 0:00:14]}  Ng4+ {[%clk 0:00:17]} 50. Kg1 {[%clk 0:00:11]}  Qb1+ {[%clk 0:00:16]} 51. Qc1 {[%clk 0:00:09]}  Qxc1# {[%clk 0:00:16]} 0-1


[Site "https://www.chess.com"]

[Event "Titled Tuesday Blitz August 1 Early 2023"]
[White "Tagliata"]
[Black "Pershina, Elena"]
[BlackFideId "24147516"]
[WhiteElo "2213"]
[BlackElo "2398"]
[Result "0-1"]
[Round "5"]
[TimeControl "180+1"]
[Date "2023.08.01"]
[WhiteClock "0:00:07"]
[BlackClock "0:00:04"]
[Board "207"]

1. e4 {[%clk 0:03:00]}  c5 {[%clk 0:03:00]} 2. Nf3 {[%clk 0:02:54]}  Nc6 {[%clk 0:03:00]} 3. Bb5 {[%clk 0:02:54]}  g6 {[%clk 0:03:00]} 4. O-O {[%clk 0:02:51]}  Bg7 {[%clk 0:02:59]} 5. Nc3 {[%clk 0:02:51]}  Nd4 {[%clk 0:02:48]} 6. Nxd4 {[%clk 0:02:50]}  cxd4 {[%clk 0:02:48]} 7. Ne2 {[%clk 0:02:50]}  e6 {[%clk 0:02:30]} 8. c3 {[%clk 0:02:44]}  Qb6 {[%clk 0:02:23]} 9. Bc4 {[%clk 0:02:43]}  Ne7 {[%clk 0:02:16]} 10. Nxd4 {[%clk 0:02:37]}  Bxd4 {[%clk 0:02:14]} 11. cxd4 {[%clk 0:02:38]}  Qxd4 {[%clk 0:02:14]} 12. d3 {[%clk 0:02:38]}  O-O {[%clk 0:02:08]} 13. Bh6 {[%clk 0:02:24]}  Rd8 {[%clk 0:02:04]} 14. Bg5 {[%clk 0:02:19]}  f6 {[%clk 0:02:02]} 15. Be3 {[%clk 0:02:17]}  Qxb2 {[%clk 0:01:58]} 16. Rb1 {[%clk 0:02:17]}  Qa3 {[%clk 0:01:56]} 17. Qf3 {[%clk 0:02:16]}  Kf7 {[%clk 0:01:53]} 18. Bd4 {[%clk 0:02:09]}  Ng8 {[%clk 0:01:49]} 19. g4 {[%clk 0:01:40]}  Qe7 {[%clk 0:01:22]} 20. h4 {[%clk 0:01:19]}  d6 {[%clk 0:01:15]} 21. g5 {[%clk 0:01:15]}  Kg7 {[%clk 0:00:25]} 22. gxf6+ {[%clk 0:01:00]}  Nxf6 {[%clk 0:00:26]} 23. e5 {[%clk 0:01:00]}  dxe5 {[%clk 0:00:24]} 24. Bxe5 {[%clk 0:01:01]}  Rf8 {[%clk 0:00:23]} 25. Qe3 {[%clk 0:00:55]}  Kg8 {[%clk 0:00:19]} 26. Qh6 {[%clk 0:00:51]}  Qg7 {[%clk 0:00:18]} 27. Qg5 {[%clk 0:00:47]}  h6 {[%clk 0:00:17]} 28. Qg3 {[%clk 0:00:43]}  Kh7 {[%clk 0:00:17]} 29. Rfe1 {[%clk 0:00:42]}  Qf7 {[%clk 0:00:16]} 30. d4 {[%clk 0:00:40]}  Nh5 {[%clk 0:00:15]} 31. Qg4 {[%clk 0:00:26]}  Qxf2+ {[%clk 0:00:15]} 32. Kh1 {[%clk 0:00:23]}  Qf3+ {[%clk 0:00:15]} 33. Qxf3 {[%clk 0:00:22]}  Rxf3 {[%clk 0:00:16]} 34. Rf1 {[%clk 0:00:20]}  Rf5 {[%clk 0:00:14]} 35. Rxf5 {[%clk 0:00:19]}  gxf5 {[%clk 0:00:15]} 36. Rg1 {[%clk 0:00:19]}  Bd7 {[%clk 0:00:14]} 37. d5 {[%clk 0:00:14]}  exd5 {[%clk 0:00:12]} 38. Bxd5 {[%clk 0:00:15]}  Bc6 {[%clk 0:00:12]} 39. Bxc6 {[%clk 0:00:15]}  bxc6 {[%clk 0:00:13]} 40. Rc1 {[%clk 0:00:16]}  Rc8 {[%clk 0:00:12]} 41. Rb1 {[%clk 0:00:16]}  c5 {[%clk 0:00:12]} 42. Kg2 {[%clk 0:00:15]}  Kg6 {[%clk 0:00:12]} 43. Kf3 {[%clk 0:00:16]}  Nf6 {[%clk 0:00:11]} 44. Rb7 {[%clk 0:00:15]}  Nd5 {[%clk 0:00:10]} 45. Rxa7 {[%clk 0:00:13]}  c4 {[%clk 0:00:10]} 46. Ra6+ {[%clk 0:00:13]}  Kh5 {[%clk 0:00:10]} 47. Bg7 {[%clk 0:00:12]}  Kxh4 {[%clk 0:00:05]} 48. Rxh6+ {[%clk 0:00:11]}  Kg5 {[%clk 0:00:05]} 49. Rh1 {[%clk 0:00:10]}  c3 {[%clk 0:00:05]} 50. Rc1 {[%clk 0:00:10]}  c2 {[%clk 0:00:06]} 51. Bb2 {[%clk 0:00:09]}  Nb4 {[%clk 0:00:06]} 52. Ke2 {[%clk 0:00:08]}  Nxa2 {[%clk 0:00:06]} 53. Ra1 {[%clk 0:00:08]}  c1=Q {[%clk 0:00:05]} 54. Bxc1+ {[%clk 0:00:09]}  Nxc1+ {[%clk 0:00:05]} 55. Kf3 {[%clk 0:00:09]}  Nb3 {[%clk 0:00:05]} 56. Rg1+ {[%clk 0:00:08]}  Kf6 {[%clk 0:00:05]} 57. Rb1 {[%clk 0:00:09]}  Nd4+ {[%clk 0:00:04]} 58. Ke3 {[%clk 0:00:09]}  Ne6 {[%clk 0:00:04]} 59. Rb6 {[%clk 0:00:08]}  Rc4 {[%clk 0:00:04]} 60. Kf3 {[%clk 0:00:08]}  Ra4 {[%clk 0:00:04]} 61. Rb3 {[%clk 0:00:08]}  Ke5 {[%clk 0:00:04]} 62. Rb5+ {[%clk 0:00:08]}  Kf6 {[%clk 0:00:04]} 63. Kg3 {[%clk 0:00:08]}  f4+ {[%clk 0:00:04]} 64. Kf2 {[%clk 0:00:08]}  Ng5 {[%clk 0:00:04]} 65. Rb6+ {[%clk 0:00:09]}  Kf5 {[%clk 0:00:04]} 66. Rb8 {[%clk 0:00:07]}  Kg4 {[%clk 0:00:04]} 67. Rg8 {[%clk 0:00:07]}  Ra2+ {[%clk 0:00:04]} 68. Kf1 {[%clk 0:00:08]}  Kf3 {[%clk 0:00:04]} 69. Rxg5 {[%clk 0:00:07]}  Ra1# {[%clk 0:00:04]} 0-1


[Site "https://www.chess.com"]

[Event "Titled Tuesday Blitz August 1 Early 2023"]
[White "Namitbir Singh Walia"]
[Black "Butti, Enrique"]
[WhiteFideId "35071068"]
[BlackFideId "3700470"]
[WhiteElo "2389"]
[BlackElo "2173"]
[Result "1-0"]
[Round "5"]
[TimeControl "180+1"]
[Date "2023.08.01"]
[WhiteClock "0:00:38"]
[BlackClock "0:01:16"]
[Board "211"]

1. e4 {[%clk 0:03:00]}  c5 {[%clk 0:02:59]} 2. Nf3 {[%clk 0:03:00]}  d6 {[%clk 0:02:59]} 3. d4 {[%clk 0:03:01]}  cxd4 {[%clk 0:02:58]} 4. Nxd4 {[%clk 0:03:02]}  Nf6 {[%clk 0:02:58]} 5. f3 {[%clk 0:03:03]}  a6 {[%clk 0:02:57]} 6. c4 {[%clk 0:03:03]}  e6 {[%clk 0:02:56]} 7. Nc3 {[%clk 0:03:04]}  b6 {[%clk 0:02:56]} 8. Be3 {[%clk 0:03:04]}  Bb7 {[%clk 0:02:55]} 9. Be2 {[%clk 0:03:04]}  Nbd7 {[%clk 0:02:56]} 10. O-O {[%clk 0:03:05]}  Be7 {[%clk 0:02:56]} 11. Rc1 {[%clk 0:03:05]}  O-O {[%clk 0:02:56]} 12. Qd2 {[%clk 0:03:06]}  Rc8 {[%clk 0:02:55]} 13. Rfd1 {[%clk 0:03:06]}  Re8 {[%clk 0:02:55]} 14. Kh1 {[%clk 0:03:06]}  Qc7 {[%clk 0:02:54]} 15. Qe1 {[%clk 0:03:05]}  Qb8 {[%clk 0:02:53]} 16. a3 {[%clk 0:03:02]}  Bd8 {[%clk 0:02:46]} 17. b4 {[%clk 0:03:00]}  Bc7 {[%clk 0:02:41]} 18. Qh4 {[%clk 0:02:41]}  d5 {[%clk 0:02:34]} 19. cxd5 {[%clk 0:02:40]}  exd5 {[%clk 0:02:33]} 20. Nf5 {[%clk 0:01:49]}  Be5 {[%clk 0:02:12]} 21. Nxd5 {[%clk 0:01:21]}  Nxd5 {[%clk 0:02:11]} 22. exd5 {[%clk 0:01:20]}  Rxc1 {[%clk 0:02:05]} 23. Rxc1 {[%clk 0:01:21]}  Bxd5 {[%clk 0:01:55]} 24. Ne7+ {[%clk 0:01:19]}  Rxe7 {[%clk 0:01:46]} 25. Qxe7 {[%clk 0:01:20]}  Nf6 {[%clk 0:01:45]} 26. Bxa6 {[%clk 0:01:10]}  Bd6 {[%clk 0:01:32]} 27. Qxd6 {[%clk 0:00:40]}  Qxd6 {[%clk 0:01:31]} 28. Rc8+ {[%clk 0:00:40]}  Qf8 {[%clk 0:01:30]} 29. Bxb6 {[%clk 0:00:41]}  Ne8 {[%clk 0:01:16]} 30. Bc5 {[%clk 0:00:38]} 1-0


[Site "https://www.chess.com"]

[Event "Titled Tuesday Blitz August 1 Early 2023"]
[White "LionKing2367890"]
[Black "Gombocz, Ferenc Jr."]
[BlackFideId "775029"]
[WhiteElo "2170"]
[BlackElo "2387"]
[Result "0-1"]
[Round "5"]
[TimeControl "180+1"]
[Date "2023.08.01"]
[WhiteClock "0:01:30"]
[BlackClock "0:01:18"]
[Board "212"]

1. e4 {[%clk 0:02:55]}  e5 {[%clk 0:02:59]} 2. Nf3 {[%clk 0:02:55]}  Nc6 {[%clk 0:03:00]} 3. Bc4 {[%clk 0:02:56]}  Nf6 {[%clk 0:03:00]} 4. d3 {[%clk 0:02:54]}  Be7 {[%clk 0:03:00]} 5. Nc3 {[%clk 0:02:54]}  O-O {[%clk 0:02:58]} 6. O-O {[%clk 0:02:54]}  d6 {[%clk 0:02:57]} 7. h3 {[%clk 0:02:54]}  Na5 {[%clk 0:02:57]} 8. Bb3 {[%clk 0:02:54]}  Nxb3 {[%clk 0:02:52]} 9. axb3 {[%clk 0:02:55]}  Be6 {[%clk 0:02:49]} 10. Nh2 {[%clk 0:02:48]}  d5 {[%clk 0:02:47]} 11. exd5 {[%clk 0:02:47]}  Nxd5 {[%clk 0:02:48]} 12. Nxd5 {[%clk 0:02:47]}  Bxd5 {[%clk 0:02:47]} 13. f4 {[%clk 0:02:47]}  Bc5+ {[%clk 0:02:45]} 14. Kh1 {[%clk 0:02:46]}  Qh4 {[%clk 0:02:36]} 15. Qg4 {[%clk 0:02:39]}  Qxg4 {[%clk 0:02:35]} 16. Nxg4 {[%clk 0:02:40]}  exf4 {[%clk 0:02:32]} 17. Bxf4 {[%clk 0:02:39]}  Bb6 {[%clk 0:02:20]} 18. Rae1 {[%clk 0:02:35]}  Rfe8 {[%clk 0:02:20]} 19. Be5 {[%clk 0:02:20]}  h5 {[%clk 0:02:02]} 20. Nh2 {[%clk 0:02:18]}  Ba5 {[%clk 0:01:58]} 21. Bc3 {[%clk 0:02:16]}  Bxc3 {[%clk 0:01:56]} 22. bxc3 {[%clk 0:02:17]}  Kf8 {[%clk 0:01:49]} 23. Kg1 {[%clk 0:02:15]}  Rxe1 {[%clk 0:01:48]} 24. Rxe1 {[%clk 0:02:15]}  Re8 {[%clk 0:01:49]} 25. Rxe8+ {[%clk 0:02:15]}  Kxe8 {[%clk 0:01:50]} 26. Kf2 {[%clk 0:02:16]}  Ke7 {[%clk 0:01:48]} 27. Nf1 {[%clk 0:02:15]}  Be6 {[%clk 0:01:47]} 28. Ng3 {[%clk 0:02:10]}  g6 {[%clk 0:01:46]} 29. Ne4 {[%clk 0:02:09]}  b5 {[%clk 0:01:45]} 30. c4 {[%clk 0:02:06]}  c6 {[%clk 0:01:43]} 31. Nc5 {[%clk 0:02:05]}  Kd6 {[%clk 0:01:38]} 32. Nxe6 {[%clk 0:01:54]}  fxe6 {[%clk 0:01:36]} 33. cxb5 {[%clk 0:01:54]}  cxb5 {[%clk 0:01:36]} 34. Ke3 {[%clk 0:01:50]}  a5 {[%clk 0:01:21]} 35. Kd4 {[%clk 0:01:48]}  e5+ {[%clk 0:01:20]} 36. Ke4 {[%clk 0:01:30]}  a4 {[%clk 0:01:18]} 0-1


[Site "https://www.chess.com"]